bitfinex/quotes_ETHUSD_20250804
["timestamp","ask_amount","ask_price","bid_price","bid_amount"]
[1754323679154,5.72590107,3668.6,3668.4,0.136]
[1754323679454,2.72590247,3668.6,3668.4,0.136]
[1754323679650,0.27259025,3668.5,3668.4,0.136]
[1754323680267,0.7431,3668.8,3668.4,2.86198408]
[1754323680482,7.351,3668.8,3668.4,0.136]
[1754323680654,1.2026,3668.7,3668.4,0.136]
[1754323680854,3.0,3668.5,3667.4,0.6998]
[1754323681094,0.7431,3668.4,3667.9,2.72630002]
[1754323681259,0.711,3668.3,3668.2,0.136]
[1754323681797,5.5256,3668.3,3668.2,0.136]
[1754323682012,0.711,3668.3,3668.2,0.136]
[1754323682314,2.72605839,3668.3,3668.2,0.136]
[1754323682472,2.72596034,3668.5,3668.0,0.136]
[1754323682668,1.1726,3668.4,3668.0,0.136]
[1754323683087,3.0,3668.5,3668.1,2.72620702]
[1754323683298,3.711,3668.8,3668.3,0.136]
[1754323683496,3.0,3668.6,3668.3,0.136]
[1754323683700,1.1726,3668.5,3667.2,2.72680897]
[1754323683869,2.72605839,3668.3,3667.8,0.136]
[1754323684077,4.3086,3668.4,3667.0,4.361]
[1754323684078,2.72635568,3667.9,3667.0,4.361]
[1754323684386,0.711,3667.9,3667.6,0.136]
[1754323684584,0.4616,3668.0,3666.8,2.72712452]
[1754323684585,2.72668864,3667.5,3666.8,2.72712452]
[1754323684771,5.5326,3667.4,3666.0,5.0444]
[1754323684976,2.72688895,3667.2,3666.5,2.7273506]
[1754323685277,0.711,3667.4,3666.3,0.02727545]
[1754323685646,4.36,3667.3,3666.8,2.72710434]
[1754323685798,0.711,3667.4,3666.5,0.71167396]
[1754323686119,4.359,3667.5,3666.6,3.84637727]
[1754323686315,3.0,3667.6,3667.2,2.72680684]
[1754323686474,4.359,3667.7,3667.4,2.72669185]
[1754323686680,4.359,3667.7,3667.5,2.72664442]
[1754323686894,3.711,3668.5,3667.5,0.6844]
[1754323687094,30.0,3668.4,3667.8,2.72635871]
[1754323687398,4.36,3668.3,3667.6,2.72650727]
[1754323687590,4.36,3668.3,3667.7,2.72643999]
[1754323687591,4.359,3668.3,3667.7,2.72643999]
[1754323687910,4.359,3668.3,3667.8,2.72636893]
[1754323688096,4.359,3668.3,3667.7,2.72644953]
[1754323688290,5.07,3668.3,3667.7,2.72644953]
[1754323688643,5.72620289,3668.2,3667.5,2.72659575]
[1754323688988,0.711,3668.1,3667.5,2.72659575]
[1754323689239,0.711,3668.1,3667.0,0.4347]
[1754323689438,0.711,3668.1,3666.9,0.6844]
[1754323689439,0.711,3668.1,3667.5,2.7266493]
[1754323689660,3.0,3667.9,3667.1,3.16158068]
[1754323689930,3.0,3667.9,3667.0,0.6844]
[1754323689931,6.43737603,3667.9,3667.2,2.72685652]
[1754323690121,4.8196,3668.0,3667.1,1.1191]
[1754323690122,3.0,3668.0,3667.1,1.1191]
[1754323690316,7.8196,3668.0,3666.4,0.31895953]
[1754323690535,7.8196,3668.0,3667.4,2.72669539]
[1754323690536,3.0,3668.0,3667.4,2.72669539]
[1754323690696,7.358,3668.0,3667.1,2.72695045]
[1754323690901,3.89896962,3667.9,3666.9,0.6844]
[1754323691097,2.72647876,3667.8,3666.9,0.6844]
[1754323691320,1.1726,3667.9,3666.9,0.6844]
[1754323691511,4.358,3667.9,3667.4,2.72670965]
[1754323691996,4.358,3667.9,3667.4,2.72671406]
[1754323692224,3.0,3668.0,3667.1,0.6844]
[1754323692433,7.358,3668.0,3667.4,2.72671237]
[1754323692620,7.358,3668.0,3667.5,2.7266213]
[1754323692826,5.72628354,3668.0,3667.3,2.72680173]
[1754323693183,7.356,3668.0,3667.4,2.72671718]
[1754323693301,10.08229311,3668.0,3667.4,2.72671718]
[1754323693501,2.72639821,3667.9,3667.3,2.72678635]
[1754323693733,3.0,3668.5,3667.1,0.6844]
[1754323694035,3.711,3668.3,3667.1,0.6844]
[1754323694237,3.0,3668.1,3667.2,2.72687609]
[1754323694440,3.0,3668.1,3667.5,2.72665203]
[1754323694632,3.0,3668.1,3667.8,0.136]
[1754323695008,5.72620917,3668.1,3667.8,0.136]
[1754323695236,3.711,3668.1,3667.8,0.136]
[1754323695438,0.5976,3668.4,3667.8,0.136]
[1754323695734,3.0,3668.2,3667.7,2.72648544]
[1754323695905,3.0,3668.2,3668.0,0.136]
[1754323696423,10.78820702,3668.1,3668.0,0.136]
[1754323696735,5.72631113,3668.0,3667.6,0.136]
[1754323696938,3.0,3668.0,3667.6,0.136]
[1754323697141,3.711,3668.0,3667.6,0.136]
[1754323697743,3.0,3668.0,3667.6,0.136]
[1754323698048,3.847,3668.2,3667.6,2.86454333]
[1754323698220,3.0,3668.0,3667.6,2.86454333]
[1754323698540,0.136,3668.2,3667.6,0.138]
[1754323698709,3.0,3668.5,3667.6,0.138]
[1754323698710,4.347,3668.4,3667.9,0.136]
[1754323699041,3.0,3668.3,3667.9,0.136]
[1754323699343,4.346,3668.2,3668.0,2.72628135]
[1754323699510,3.0,3668.6,3668.2,0.136]
[1754323699708,3.0,3668.4,3668.2,0.136]
[1754323699941,4.346,3668.4,3668.2,0.136]
[1754323700114,3.0,3668.3,3668.2,0.136]
[1754323700316,0.137,3668.8,3668.2,0.136]
[1754323700510,3.0,3668.6,3668.2,2.86208519]
[1754323701104,5.7258394,3668.6,3668.2,0.136]
[1754323701312,3.0,3668.6,3668.2,0.136]
[1754323701521,4.343,3668.5,3668.2,0.136]
[1754323701726,5.5156,3668.5,3668.2,0.136]
[1754323701927,0.711,3668.4,3668.2,0.136]
[1754323702828,4.343,3668.5,3668.2,0.136]
[1754323703034,3.711,3668.7,3668.2,2.86212329]
[1754323703210,4.339,3668.6,3668.2,2.86212329]
[1754323703408,4.339,3668.6,3668.2,0.136]
[1754323703608,4.339,3668.6,3668.2,2.86212041]
[1754323703808,4.339,3668.6,3668.3,0.6844]
[1754323704151,4.339,3668.6,3668.2,0.136]
[1754323704314,3.0,3668.7,3668.2,0.136]
[1754323704647,4.339,3668.6,3668.2,2.86209886]
[1754323704814,3.0,3668.7,3668.2,2.86209886]
[1754323705012,4.336,3668.5,3668.2,0.136]
[1754323705759,0.711,3668.6,3668.2,0.136]
[1754323705961,4.336,3668.4,3668.2,0.136]
[1754323706265,4.334,3668.4,3668.3,2.72602569]
[1754323706465,3.137,3668.8,3668.3,2.72602569]
[1754323706762,3.0,3668.6,3668.2,0.136]
[1754323706912,0.711,3668.7,3668.2,2.86208541]
[1754323707117,4.332,3668.6,3668.2,2.86208541]
[1754323707453,0.137,3668.8,3668.2,0.8204]
[1754323707749,0.137,3668.8,3668.2,1.2551]
[1754323707917,4.33,3668.7,3668.6,0.136]
[1754323708551,0.001,3668.8,3668.7,2.72576116]
[1754323708851,0.001,3668.8,3668.7,4.40362202]
[1754323709757,0.001,3668.8,3668.7,8.86862202]
[1754323710052,15.04,3670.4,3669.1,2.72541899]
[1754323710228,15.04,3670.4,3669.7,2.72501839]
[1754323710426,15.04,3670.4,3670.3,2.72457292]
[1754323710749,15.04,3670.4,3670.0,0.6844]
[1754323710936,15.04,3670.4,3670.2,2.72462677]
[1754323711140,15.04,3670.4,3670.3,4.07307292]
[1754323711351,0.3,3672.5,3670.3,0.48564572]
[1754323711552,0.3,3672.5,3670.3,6.21019049]
[1754323711714,1.0685,3672.5,3670.5,0.55]
[1754323711918,0.3,3672.5,3672.1,2.72323738]
[1754323712339,0.15907727,3673.7,3672.1,2.72323738]
[1754323712340,0.15907727,3673.7,3672.1,0.02723237]
[1754323712626,3.0,3673.5,3671.8,0.4584]
[1754323712822,0.7685,3673.4,3672.2,4.429]
[1754323713124,0.7685,3673.4,3671.8,0.4584]
[1754323713125,0.15907727,3673.7,3672.3,1.17361805]
[1754323713326,0.15907727,3673.7,3673.6,2.72212543]
[1754323713552,0.15907727,3673.7,3673.6,7.62252543]
[1754323713860,0.02,3674.9,3674.4,5.72153276]
[1754323714022,0.1542963,3675.9,3674.4,5.72153276]
[1754323714023,0.1542963,3675.9,3675.0,2.72102855]
[1754323714234,0.1542963,3675.9,3675.4,3.0]
[1754323714458,14.79,3676.5,3676.4,2.72005222]
[1754323714663,12.20664,3676.5,3676.4,7.19805222]
[1754323714958,12.20664,3676.5,3676.4,2.72005222]
[1754323715163,12.20664,3676.5,3676.4,7.40383372]
[1754323715358,3.40406417,3677.3,3676.4,4.6837815]
[1754323715359,2.85406417,3677.3,3676.4,4.6837815]
[1754323715521,2.85406417,3677.3,3676.4,0.2007815]
[1754323715723,2.85406417,3677.3,3675.4,4.557]
[1754323715922,2.85406417,3677.3,3675.5,0.02720718]
[1754323715923,0.28540642,3677.2,3675.5,0.02720718]
[1754323716176,1.49970642,3677.2,3675.4,4.557]
[1754323716326,1.2143,3677.2,3675.5,4.76423655]
[1754323716665,35.7763,3677.1,3676.0,2.72034375]
[1754323716868,0.7685,3677.0,3675.5,4.77721963]
[1754323717078,3.0,3676.8,3674.9,2.72109734]
[1754323717282,2.72092416,3675.3,3673.5,6.544]
[1754323717431,2.72123949,3674.8,3673.8,1.67130944]
[1754323717777,2.72123949,3674.8,3673.9,0.24626681]
[1754323717778,2.72148785,3674.5,3673.9,0.24626681]
[1754323717936,0.7685,3674.7,3674.0,0.24626681]
[1754323717937,1.2143,3674.7,3674.0,0.24626681]
[1754323718262,3.27209242,3675.2,3674.1,0.24626681]
[1754323718263,1.2143,3674.6,3674.1,0.24626681]
[1754323718469,1.2143,3674.6,3674.2,0.24626681]
[1754323718470,2.72160683,3674.3,3674.2,0.24626681]
[1754323718759,2.72184314,3674.0,3673.4,0.20869337]
[1754323718922,0.27209242,3675.2,3673.5,2.96740099]
[1754323718923,3.48970926,3674.9,3673.5,2.96740099]
[1754323719126,2.72088033,3675.3,3673.9,2.72183235]
[1754323719495,0.4458,3675.7,3674.0,7.90216163]
[1754323719642,0.7685,3675.5,3674.1,0.24525001]
[1754323719839,0.7685,3675.5,3673.6,3.3326501]
[1754323719840,0.4458,3675.4,3673.6,0.6917501]
[1754323720045,2.72100412,3675.2,3673.7,0.24475689]
[1754323720295,2.72120442,3674.9,3673.7,0.24475689]
[1754323720440,0.55,3674.7,3673.8,0.24475689]
[1754323720644,30.0,3673.8,3671.5,0.232]
[1754323720877,16.49872021,3674.5,3671.5,0.232]
[1754323720878,2.72270859,3672.9,3671.6,0.24461931]
[1754323721044,2.72286496,3672.7,3671.6,0.6005541]
[1754323721248,1.2143,3672.8,3671.7,2.96814998]
[1754323721450,4.583,3672.7,3672.5,0.136]
[1754323721646,0.7685,3673.1,3671.9,0.27185316]
[1754323721982,4.582,3673.4,3672.6,0.136]
[1754323722199,4.582,3673.5,3673.4,0.136]
[1754323722492,6.37593,3673.5,3673.4,0.136]
[1754323722798,1.79393,3673.5,3673.4,0.136]
[1754323722948,5.7943,3673.5,3673.4,0.136]
[1754323723151,1.2143,3673.5,3673.4,0.136]
[1754323723548,1.2143,3674.1,3673.4,0.136]
[1754323723749,1.2143,3674.1,3674.0,0.136]
[1754323724653,1.2143,3674.1,3674.0,2.85782906]
[1754323725003,1.2143,3674.6,3674.0,0.136]
[1754323725307,1.63573,3674.6,3674.0,2.85780682]
[1754323725599,1.2143,3674.6,3674.5,0.136]
[1754323725982,1.2143,3674.6,3673.1,0.3591]
[1754323726202,1.2143,3674.5,3674.3,0.136]
[1754323726355,2.72154676,3674.4,3674.1,0.136]
[1754323726676,0.7685,3674.4,3674.1,0.136]
[1754323726867,0.39357632,3674.3,3673.6,2.65812362]
[1754323727187,1.60787632,3674.3,3673.6,2.65812362]
[1754323727388,1.60787632,3674.3,3674.0,0.136]
[1754323727591,1.2143,3674.2,3674.0,0.136]
[1754323728086,0.7685,3674.6,3674.0,0.136]
[1754323728409,4.572,3674.5,3674.2,0.136]
[1754323728609,1.2143,3674.4,3674.2,0.136]
[1754323728956,4.565,3674.3,3674.2,0.136]
[1754323729162,4.565,3674.3,3672.7,3.3508]
[1754323729163,8.49990683,3674.3,3672.7,0.3508]
[1754323729489,2.72181635,3674.1,3674.0,0.136]
[1754323729888,2.72181635,3674.1,3672.7,0.3508]
[1754323729889,1.2143,3674.1,3673.1,0.02722495]
[1754323730058,2.72199477,3673.8,3672.9,2.72261553]
[1754323730394,1.2143,3673.7,3672.0,2.72331154]
[1754323730609,1.2143,3673.7,3673.1,2.72243702]
[1754323730756,4.561,3673.6,3672.9,2.72259158]
[1754323730956,1.2143,3673.5,3671.3,0.3516]
[1754323731157,2.72234775,3673.3,3671.9,2.72337323]
[1754323731364,2.72269766,3672.9,3672.1,2.72317099]
[1754323731564,2.72285332,3672.7,3670.9,4.9146]
[1754323731868,4.563,3672.6,3672.0,2.72329679]
[1754323732071,4.563,3672.6,3671.1,2.72395127]
[1754323732272,0.7685,3672.5,3671.8,2.72342752]
[1754323732472,0.7685,3672.5,3671.2,0.60755513]
[1754323732679,5.3265,3672.5,3672.1,2.72318522]
[1754323732860,5.0038,3672.8,3672.2,2.7231447]
[1754323733062,2.72279328,3672.7,3672.0,2.72324251]
[1754323733297,0.7685,3672.7,3671.8,0.02723459]
[1754323733613,3.4913106,3672.7,3672.0,2.72330701]
[1754323733779,1.2143,3672.6,3671.7,2.72348976]
[1754323733974,8.04550747,3672.5,3671.7,2.7235151]
[1754323734281,2.7225175,3673.1,3671.3,2.72383079]
[1754323734282,5.7683,3672.4,3671.3,2.72383079]
[1754323734480,5.7683,3672.4,3671.2,0.60755513]
[1754323734481,2.72316322,3672.2,3671.5,2.72366701]
[1754323734792,2.72331594,3672.0,3671.3,2.72378236]
[1754323734968,4.554,3672.4,3668.7,3.33528384]
[1754323735169,2.72350833,3671.8,3671.1,2.72396618]
[1754323735494,4.55,3671.7,3670.6,0.0272435]
[1754323735696,5.3185,3671.7,3670.0,7.27576489]
[1754323735881,2.72373856,3671.5,3670.7,2.72426727]
[1754323736082,5.3185,3671.4,3670.8,2.72420017]
[1754323736394,0.4458,3671.3,3670.8,2.72419337]
[1754323736598,2.72421671,3670.8,3670.1,2.7247106]
[1754323736797,1.2143,3670.7,3670.4,2.72448705]
[1754323736998,1.2143,3670.7,3670.2,2.72459185]
[1754323736999,0.4458,3670.7,3670.2,2.72459185]
[1754323737201,0.7685,3670.6,3670.2,2.72459185]
[1754323737392,0.7685,3670.6,3669.7,0.02725018]
[1754323737591,0.7685,3670.6,3669.9,2.72486988]
[1754323737795,0.7685,3670.6,3669.8,0.27522689]
[1754323738106,0.7685,3670.8,3669.9,0.02724869]
[1754323738408,0.7685,3670.8,3670.3,2.72456745]
[1754323738593,0.4458,3670.7,3669.1,3.0]
[1754323738766,0.7685,3670.6,3670.0,2.72478826]
[1754323738973,0.7685,3670.6,3670.2,2.72464603]
[1754323739292,1.2143,3670.5,3670.1,2.7247039]
[1754323739487,4.545,3670.6,3670.4,2.72445018]
[1754323739701,4.545,3670.7,3670.4,2.72445018]
[1754323739901,4.545,3670.7,3669.5,0.55098131]
[1754323739902,1.2143,3671.6,3670.5,2.72441724]
[1754323740078,1.2143,3671.6,3671.3,0.136]
[1754323740282,1.2143,3671.5,3671.3,0.136]
[1754323740469,2.72407528,3671.0,3669.6,2.72509265]
[1754323740800,5.07278648,3671.5,3670.4,0.136]
[1754323740801,5.7573,3670.9,3670.4,0.136]
[1754323741013,1.2143,3670.9,3670.4,0.136]
[1754323741180,0.9878,3670.9,3670.8,2.7242018]
[1754323741379,1.4247,3670.9,3670.8,0.136]
[1754323741768,1.56717,3670.9,3670.1,0.002]
[1754323741972,1.56717,3670.9,3670.2,0.136]
[1754323741973,31.5607,3670.8,3670.2,0.136]
[1754323742173,31.4247,3670.7,3670.2,0.136]
[1754323742381,4.54,3670.6,3670.2,2.72464451]
[1754323742598,4.54,3670.6,3670.5,2.72442446]
[1754323742904,4.54,3670.6,3670.5,0.136]
[1754323743106,5.9647,3670.6,3670.5,0.136]
[1754323743306,8.68905024,3670.6,3670.5,0.136]
[1754323743606,8.68905024,3670.6,3670.1,0.002]
[1754323743607,2.72464715,3670.2,3670.1,0.002]
[1754323743994,0.136,3670.1,3669.1,0.24872935]
[1754323744196,2.72487338,3669.9,3669.4,0.136]
[1754323744393,0.9878,3669.8,3669.4,0.136]
[1754323744713,2.72505018,3669.7,3669.4,0.136]
[1754323744873,4.538,3669.6,3669.4,0.136]
[1754323745077,4.537,3669.5,3669.3,0.136]
[1754323745279,5.9617,3669.5,3669.3,0.136]
[1754323745518,1.4247,3669.4,3669.3,0.136]
[1754323745818,4.536,3669.4,3669.3,0.136]
[1754323746222,3.0,3670.9,3669.3,2.72528077]
[1754323746393,2.72430638,3670.7,3669.4,0.29978049]
[1754323746580,2.72462921,3670.3,3669.4,0.27252808]
[1754323746775,4.545,3670.2,3668.9,0.9432]
[1754323747111,4.545,3670.2,3669.5,2.72510022]
[1754323747314,3.0,3671.1,3668.9,0.9432]
[1754323747472,0.2726,3672.4,3668.6,2.72577374]
[1754323747473,5.72415284,3670.9,3669.8,2.72491794]
[1754323747679,2.72435024,3670.6,3669.7,2.72500552]
[1754323747888,5.9667,3670.5,3668.8,0.9432]
[1754323748106,3.71232561,3670.4,3668.8,0.9432]
[1754323748294,1.4247,3670.6,3668.9,0.46665612]
[1754323748493,4.542,3670.8,3670.2,2.72461748]
[1754323748707,5.5298,3670.8,3670.2,2.72461748]
[1754323748874,5.5298,3670.8,3670.0,2.7247916]
[1754323748875,2.7243555,3670.6,3669.9,2.72482393]
[1754323749075,1.4247,3670.5,3669.9,0.27248239]
[1754323749280,5.9667,3670.5,3670.1,2.72465231]
[1754323749483,4.542,3670.6,3670.2,2.72458595]
[1754323749686,1.4247,3670.9,3670.2,2.72458595]
[1754323749888,4.541,3670.8,3670.2,2.72458595]
[1754323750085,4.54,3670.7,3670.0,2.72476948]
[1754323750395,4.54,3670.7,3670.0,2.72478799]
[1754323750396,1.4247,3670.6,3670.0,2.72478799]
[1754323750599,1.4247,3670.6,3669.4,0.9432]
[1754323750816,1.4247,3670.5,3669.5,2.86337291]
[1754323751025,1.4247,3670.4,3669.5,0.13826]
[1754323751200,4.14928963,3670.3,3669.5,0.13826]
[1754323751524,5.5238,3670.2,3669.0,4.542]
[1754323751728,5.5238,3670.2,3669.4,2.72522826]
[1754323751729,2.72477596,3670.1,3669.4,2.72522826]
[1754323752039,1.4247,3670.0,3669.0,4.542]
[1754323752535,0.4369,3670.0,3669.1,2.72545209]
[1754323752686,5.9587,3669.9,3668.9,2.72561164]
[1754323752884,7.25595095,3669.8,3668.7,2.72575763]
[1754323753143,2.72528911,3669.4,3668.5,2.72590977]
[1754323753318,0.9878,3669.6,3668.6,0.02725835]
[1754323753624,1.4247,3669.5,3668.4,0.02725984]
[1754323754029,1.4247,3669.5,3668.7,2.72570615]
[1754323754030,5.9547,3669.5,3668.7,2.72570615]
[1754323754229,5.9547,3669.5,3668.8,0.54515505]
[1754323754730,5.9547,3669.5,3669.0,2.72552814]
[1754323755019,0.9878,3669.4,3669.1,2.72542555]
[1754323755627,1.4247,3669.3,3669.1,2.72545734]
[1754323756015,0.9878,3669.8,3668.9,0.02725612]
[1754323756324,4.523,3669.7,3669.2,0.136]
[1754323756501,5.5098,3669.9,3669.2,0.136]
[1754323756701,0.136,3670.2,3669.2,0.136]
[1754323756900,0.9878,3670.3,3669.2,0.136]
[1754323756901,4.522,3670.1,3669.2,0.02725389]
[1754323757102,4.522,3670.1,3670.0,0.136]
[1754323757327,5.9467,3670.1,3670.0,0.136]
[1754323757828,6.81382139,3670.1,3668.3,0.20371451]
[1754323758032,2.72510237,3669.6,3669.2,0.136]
[1754323758207,2.7252938,3669.4,3669.2,0.136]
[1754323758395,1.4247,3669.3,3669.2,0.136]
[1754323758725,1.4247,3669.3,3668.0,4.526]
[1754323758726,4.15001545,3669.3,3668.0,4.526]
[1754323758927,2.72551658,3669.1,3668.8,0.136]
[1754323759132,4.517,3669.0,3668.8,0.136]
[1754323759330,5.9417,3669.0,3667.6,0.002]
[1754323759514,1.642,3668.8,3667.6,0.002]
[1754323759719,30.0,3668.7,3667.6,0.002]
[1754323759923,1.642,3668.5,3667.6,0.27486981]
[1754323760101,8.66668408,3668.4,3667.6,0.002]
[1754323760293,2.72621816,3668.1,3667.6,0.002]
[1754323760518,2.72494413,3669.8,3668.1,2.72614774]
[1754323760768,3.0,3669.6,3668.2,0.02726132]
[1754323760931,32.72516691,3669.5,3668.4,2.72593015]
[1754323761239,2.72541431,3669.2,3668.5,3.27111351]
[1754323761534,1.4247,3669.4,3668.5,0.54520624]
[1754323761712,4.515,3669.3,3668.5,0.54520624]
[1754323761915,1.4247,3669.4,3668.2,0.97046132]
[1754323762103,4.515,3669.3,3668.6,2.72578247]
[1754323762532,4.15014229,3669.2,3667.6,0.9452]
[1754323762707,2.72547049,3669.1,3668.4,2.7259399]
[1754323762909,4.512,3669.0,3668.1,2.72616337]
[1754323763124,2.72589199,3668.6,3667.9,2.72630904]
[1754323763303,2.72589199,3668.6,3667.6,0.002]
[1754323763304,3.0,3668.4,3667.6,0.002]
[1754323763505,2.72610196,3668.3,3667.6,0.002]
[1754323763698,2.72640577,3667.9,3667.6,0.002]
[1754323763937,4.511,3667.9,3667.6,0.002]
[1754323764240,2.72650434,3667.7,3667.6,0.002]
[1754323764610,4.15120434,3667.7,3667.6,0.002]
[1754323765216,10.48206051,3667.7,3667.6,0.002]
[1754323765417,14.98906051,3667.7,3667.6,0.002]
[1754323766055,4.4247,3667.7,3667.6,0.002]
[1754323766223,4.51,3667.8,3667.7,2.72650434]
[1754323766428,4.511,3668.0,3667.6,0.002]
[1754323766621,4.15120434,3667.7,3667.6,0.002]
[1754323766823,5.9377,3667.7,3667.6,0.002]
[1754323767040,8.66420434,3667.7,3667.6,0.002]
[1754323767434,5.9377,3667.7,3667.6,0.002]
[1754323768012,1.4247,3667.7,3667.6,0.002]
[1754323768287,4.15120434,3667.7,3667.6,0.002]
[1754323768626,8.65820434,3667.7,3667.6,0.002]
[1754323768827,13.34666293,3667.7,3667.6,0.002]
[1754323769632,38.83966293,3667.7,3667.6,0.002]
[1754323769838,43.34666293,3667.7,3667.6,0.002]
[1754323770222,11.65620434,3667.7,3667.6,0.002]
[1754323770544,4.506,3668.0,3667.6,0.138]
[1754323770753,4.506,3667.9,3667.6,0.138]
[1754323771041,1.4247,3667.9,3667.6,0.002]
[1754323771240,0.136,3668.0,3667.6,2.72852095]
[1754323771443,0.136,3668.0,3667.7,0.5591223]
[1754323771624,4.507,3667.9,3667.6,0.002]
[1754323771819,0.136,3668.0,3667.6,0.002]
[1754323772030,6.68579959,3668.7,3667.8,2.72643001]
[1754323772231,3.136,3668.4,3667.8,0.136]
[1754323772458,3.136,3668.4,3667.6,0.002]
[1754323772459,0.136,3669.5,3668.6,0.136]
[1754323772660,0.136,3669.5,3667.9,1.42866355]
[1754323772661,4.507,3669.4,3669.0,0.136]
[1754323772966,1.556,3669.5,3669.0,0.136]
[1754323772967,2.725441,3669.2,3669.0,0.136]
[1754323773128,4.508,3669.1,3668.8,0.136]
[1754323773333,5.928,3669.1,3667.6,0.002]
[1754323773533,5.467,3669.0,3668.4,2.86192862]
[1754323773731,5.467,3669.0,3668.4,0.136]
[1754323773946,0.136,3669.1,3668.4,0.136]
[1754323773947,5.467,3668.9,3668.4,0.136]
[1754323774156,0.136,3669.1,3668.4,0.136]
[1754323774330,4.505,3669.0,3668.7,2.72570923]
[1754323774535,4.505,3669.0,3668.8,0.27257092]
[1754323774748,1.42,3668.9,3668.5,0.136]
[1754323774982,4.505,3668.8,3668.5,0.136]
[1754323775151,5.925,3668.8,3668.5,2.86190757]
[1754323775335,1.42,3668.7,3668.5,0.136]
[1754323775536,1.42,3668.7,3667.7,0.82259901]
[1754323775537,2.72583546,3668.6,3667.8,2.72643001]
[1754323775752,0.96,3668.5,3668.3,0.136]
[1754323776137,2.72577187,3668.7,3668.3,0.136]
[1754323776344,2.72577187,3668.7,3667.7,3.54910196]
[1754323776345,1.42,3668.6,3667.7,0.82259901]
[1754323776546,2.72602633,3668.4,3667.9,0.136]
[1754323776872,5.922,3668.3,3667.9,0.136]
[1754323777043,2.72619347,3668.2,3667.9,0.136]
[1754323777371,1.42,3668.2,3667.9,0.136]
[1754323777578,7.22806124,3668.3,3667.6,0.002]
[1754323777579,1.42,3668.1,3667.6,0.002]
[1754323777762,4.28222273,3668.1,3667.6,0.002]
[1754323777957,1.42,3668.0,3667.6,0.002]
[1754323778135,1.42,3668.6,3667.7,0.962]
[1754323778473,2.72457716,3670.3,3667.9,0.136]
[1754323778474,6.055,3668.5,3667.9,0.136]
[1754323778676,1.556,3668.5,3667.9,0.136]
[1754323778891,5.918,3668.4,3667.9,0.136]
[1754323779174,5.918,3668.4,3667.6,0.002]
[1754323779175,1.42,3668.3,3667.6,0.002]
[1754323779375,2.72641601,3667.9,3667.6,0.002]
[1754323779580,1.42,3668.3,3667.6,0.002]
[1754323779581,7.22346009,3667.8,3667.6,0.002]
[1754323779782,7.22350434,3667.7,3667.6,0.002]
[1754323779954,8.64350434,3667.7,3667.6,0.002]
[1754323780793,8.77950434,3667.7,3667.6,0.002]
[1754323780987,1.556,3667.7,3667.6,0.002]
[1754323781158,3.0,3668.6,3667.6,0.002]
[1754323781159,0.96,3669.0,3667.6,1.4034]
[1754323781361,4.501,3669.0,3667.7,1.56900504]
[1754323781563,4.503,3668.9,3667.8,1.4014]
[1754323781743,4.503,3668.9,3668.7,2.72572417]
[1754323781949,0.96,3668.8,3668.2,2.72607192]
[1754323782159,0.96,3668.8,3667.7,0.14034]
[1754323782160,4.502,3668.7,3667.7,2.86684028]
[1754323782361,0.96,3668.6,3667.8,0.38308403]
[1754323782557,0.96,3668.6,3667.7,0.14034]
[1754323782558,0.46,3668.5,3667.7,0.14034]
[1754323782874,5.461,3668.4,3667.8,2.72642822]
[1754323783075,4.502,3668.3,3667.7,0.962]
[1754323783249,4.502,3668.5,3667.7,0.962]
[1754323783450,5.921,3668.5,3667.7,2.72650434]
[1754323783647,2.72604178,3668.4,3667.6,0.002]
[1754323783852,3.96,3668.4,3667.6,0.27486513]
[1754323784048,4.5,3668.3,3667.6,0.002]
[1754323784250,8.64609347,3668.3,3667.6,0.002]
[1754323784450,1.42,3668.3,3667.6,0.002]
[1754323784677,2.72614901,3668.2,3667.6,0.002]
[1754323784860,5.72620702,3668.1,3667.6,0.002]
[1754323785060,3.96,3668.1,3667.6,0.002]
[1754323785265,1.42,3668.0,3667.6,0.002]
[1754323785576,2.72650434,3667.7,3667.6,0.002]
[1754323786096,5.914,3667.7,3667.6,0.002]
[1754323786801,8.914,3667.7,3667.6,0.002]
[1754323787106,13.08190434,3667.7,3667.6,0.002]
[1754323787708,12.19050434,3667.7,3667.6,0.002]
[1754323788480,7.69650434,3667.7,3667.6,0.002]
[1754323788724,12.18250434,3667.7,3667.6,0.002]
[1754323790510,7.69650434,3667.7,3667.6,0.002]
[1754323790838,12.18250434,3667.7,3667.6,0.002]
[1754323792082,13.94603324,3667.7,3667.6,0.002]
[1754323793222,15.58803324,3667.7,3667.6,1e-08]
[1754323793385,45.58803324,3667.7,3667.6,1e-08]
[1754323793789,41.10203324,3667.7,3667.6,1e-08]
[1754323794314,45.57403324,3667.7,3667.6,1e-08]
[1754323794820,41.10203324,3667.7,3667.6,1e-08]
[1754323795126,45.57203324,3667.7,3667.6,1e-08]
[1754323795890,42.16550434,3667.7,3667.6,1e-08]
[1754323796121,7.69650434,3667.7,3667.6,1e-08]
[1754323796306,13.80650434,3667.7,3667.6,1e-08]
[1754323797287,43.80650434,3667.7,3667.6,1e-08]
[1754323797703,43.80495413,3667.7,3667.6,1e-08]
[1754323797903,46.53261599,3667.7,3667.6,1e-08]
[1754323799425,46.52761599,3667.7,3667.6,1e-08]
[1754323800291,42.06561599,3667.7,3667.6,1e-08]